Cogmind - Beta 16 @@@ ROGUE MODE // 2025.12.28 @ 16:18:48 Player: skilledspacepolice Result: Destroyed by G-34 Mercenary with Small Laser Performance ------------- Evolutions (0) 0 Regions Visited (2) 400 Robots Destroyed (20) 100 Value Destroyed (485) 485 Prototype IDs (0) 0 Alien Tech Used (0) 0 Bonus (0) 0 TOTAL SCORE: 985 Bonus ------- None Cogmind --------- Core Integrity 0/250 Matter 300/300 Energy 160/160 System Corruption 0% Temperature Cool (6) Movement Treading (160) Location -10/Mines Parts ------- > --- POWER (1) -------- Light Nuclear Core > --- PROPULSION (2) --- Light Treads > --- UTILITY (2) ------ Small Storage Unit Signal Interpreter > --- WEAPON (2) ------- Hammer > --- INVENTORY (8) ---- Aluminum Leg Small Storage Unit ECM Suite Power Shielding Peak State ------------ > --- POWER ------------ Light Ion Engine > --- PROPULSION ------- Light Treads Light Treads > --- UTILITY ---------- Small Storage Unit Signal Interpreter > --- WEAPON ----------- Assault Rifle Assault Rifle > --- INVENTORY -------- Ion Engine Light Treads ECM Suite Hammer [Rating: 7] Favorites ----------- Power Light Ion Engine Engine Light Ion Engine Power Core Light Nuclear Core Propulsion Light Treads Treads Light Treads Utility Small Storage Unit Storage Small Storage Unit Processor Signal Interpreter Weapon Assault Rifle Ballistic Gun Assault Rifle Impact Weapon Hammer Build | -11 -10 -10 ------- Run | Yrd Mat Min Slots Evolved . | . . . Power . | . . . Propulsion . | . . . Utility . | . . . Weapon . | . . . Parts Attached 14 | 6 8 . Power 4 | 1 3 . Engine 3 | 1 2 . Core 1 | . 1 . Reactor . | . . . Propulsion 3 | 2 1 . Treads 3 | 2 1 . Leg . | . . . Wheel . | . . . Hover . | . . . Flight . | . . . Utility 2 | 1 1 . Device . | . . . Storage 1 | 1 . . Processor 1 | . 1 . Hackware . | . . . Protection . | . . . Artifact . | . . . Weapon 5 | 2 3 . Energy Gun . | . . . Energy Cannon . | . . . Ballistic Gun 4 | 2 2 . Ballistic Cannon . | . . . Launcher . | . . . Special Weapon . | . . . Impact Weapon 1 | . 1 . Slashing Weapon . | . . . Piercing Weapon . | . . . Special Melee Weapon . | . . . Unidentified Prototypes . | . . . Parts Lost 4 | . 4 . Power . | . . . Propulsion 2 | . 2 . Utility . | . . . Weapon 2 | . 2 . Highest Loss Streak 4 | . 4 . To Critical Strikes . | . . . Average Backups 4 | 1 4 4 Power . | . . . Propulsion . | . . 1 Utility 2 | . 2 3 Weapon . | . . . Tool/Special . | . . . Unused Backups 4 | . . 4 Power . | . . . Propulsion 1 | . . 1 Utility 3 | . . 3 Weapon . | . . . Tool/Special . | . . . Average Slot Usage (%) 91 | . 91 71 Engine 11 | . 11 . Core 2 | . 2 14 Treads 24 | . 24 14 Storage 14 | . 14 14 Processor 12 | . 11 14 Ballistic Gun 22 | . 22 . Impact Weapon 3 | . 2 14 Peak Build Rating 7 | 6 7 7 Average Rating 6 | 4 6 7 On Entrance 4 | . 6 7 Avg Prop Armor Cover (%) . | . . . Naked Turns . | . . . Heaviest Build 14 | 12 14 12 Greatest Support 40 | 40 40 20 Greatest Overweight (x) . | . . . Average Overweight (x) . | . . . Largest Inventory Capacity 8 | 8 8 8 Average Capacity 7 | 6 8 8 Most Carried 7 | 4 7 4 Average Carried 4 | 1 4 4 Final Capacity 8 | 8 8 8 Final Carried 4 | 1 4 4 Class Distribution -------------------- 100% | Mutant Dominant Class ---------------- Mutant | -10/Materials Mutant | -10/Mines Resources | -11 -10 -10 ----------- Run | Yrd Mat Min Matter Collected 593 | 169 424 . Remotely . | . . . Salvage Created 593 | . 593 . Parts 35 | . 35 . Haulers Intercepted . | . . . Recyclers Shooed 1 | . 1 . Parts Field Recycled . | . . . Retrieved Matter . | . . . Parts Self-Destructed . | . . . Prevented . | . . . Parts Restored . | . . . Kills | -11 -10 -10 ------- Run | Yrd Mat Min Combat Hostiles Destroyed 16 | . 16 . Melee 3 | . 3 . Guns 12 | . 12 . Classes Destroyed 4 | . 4 . Worker 1 | . 1 . Watcher 3 | . 3 . Swarmer 6 | . 6 . Grunt 10 | . 10 . Best Kill Streak 6 | . 6 . Combat Bots Only 5 | . 5 . Max Kills in Single Turn 2 | . 2 . Gunslinging . | . . . Exploded . | . . . Melee 1 | . 1 . Uniques/NPCs Destroyed . | . . . Combat | -11 -10 -10 -------- Run | Yrd Mat Min Hostile Shots Fired 141 | . 140 1 Missed 29 | . 29 . Hits 112 | . 111 1 Projectile 112 | . 111 1 Critical Strikes 1 | . 1 . Damage Taken 1317 | . 1305 12 Core 258 | . 246 12 Absorbed by Shields . | . . . Regen/Repaired (Parts) 101 | . 101 . Core Remaining (%) 100 | 100 . . Volleys Fired 49 | . 49 . Largest 2 | . 2 . Hottest 40 | . 40 . Shots Fired 97 | . 97 . Gun 97 | . 97 . Cannon . | . . . Launcher . | . . . Special . | . . . Kinetic 97 | . 97 . Thermal . | . . . Explosive . | . . . Electromagnetic . | . . . Robot Hit Streak 11 | . 11 . Robot Miss Streak 6 | . 6 . Penetration Max . | . . . Secondary Targets 2 | . 2 . Max Gunslinging Chain 1 | . 1 . Shots Hit Robots 70 | . 70 . Core Hits 27 | . 27 . Critical Kills . | . . . Critical Parts Destroyed 1 | . 1 . Critical Strikes 1 | . 1 . Smash 1 | . 1 . Melee Attacks 14 | . 14 . Impact 14 | . 14 . Slashing . | . . . Piercing . | . . . Sneak Attacks . | . . . Combat Hostiles . | . . . Follow-up Attacks . | . . . Damage Inflicted 1000 | . 1000 . Guns 728 | . 728 . Cannons . | . . . Explosions . | . . . Melee 272 | . 272 . Ramming . | . . . Kinetic 728 | . 728 . Thermal . | . . . Explosive . | . . . Electromagnetic . | . . . Impact 272 | . 272 . Slashing . | . . . Piercing . | . . . Highest Corruption . | . . . Average Corruption . | . . . Corruption Purged . | . . . Corruption Blocked . | . . . Overload Shots . | . . . Overflow Damage 69 | . 69 . Projectiles . | . . . Explosions . | . . . Melee 69 | . 69 . Knockbacks . | . . . Impact . | . . . Kinetic . | . . . Secondary . | . . . Self-Inflicted Damage . | . . . Shots . | . . . Rammed . | . . . Targets Rammed . | . . . Kicked . | . . . Crushed . | . . . Highest Temperature 37 | . 37 . Average Temperature 15 | . 15 . Received Heat Transfer 687 | . 681 6 Siege Activations . | . . . Martial Activations . | . . . Shielding Activations . | . . . Robots Disrupted . | . . . Combat Hostiles . | . . . Robots Corrupted 1 | . 1 . Combat Hostiles 1 | . 1 . Parts Fried 2 | . 2 . Impact Corruptions 3 | . 3 . Robots Melted . | . . . Combat Hostiles . | . . . Parts Melted . | . . . Heat Transferred . | . . . Parts Sabotaged . | . . . Parts Stolen . | . . . Parts Stripped . | . . . Power Chain Reactions . | . . . Alert | -11 -10 -10 ------- Run | Yrd Mat Min Maximum Alert Level . | . . . Low Security (%) 100 | 100 100 100 Level 1 . | . . . Level 2 . | . . . Level 3 . | . . . Level 4 . | . . . Level 5 . | . . . High Security . | . . . Max Security . | . . . Peak Influence 146 | . 146 14 Initial 14 | . . 14 Average 45 | . 48 14 Influence Increases 451 | . 451 . Destroy 0b10 Robot/C 320 | . 320 . Destroy 0b10 Robot/NC 20 | . 20 . Destroy Leader 86 | . 86 . Successful Hack 10 | . 10 . Disable Machine 15 | . 15 . Influence Decreases 437 | . 414 23 Entered New Map 23 | . . 23 Time Decay 260 | . 260 . Lost Part 40 | . 40 . Purge Threat 114 | . 114 . Squads Dispatched 5 | . 5 . Investigation 4 | . 4 . Extermination . | . . . Reinforcement 1 | . 1 . Assault . | . . . Garrison . | . . . Intercept . | . . . Searches Triggered . | . . . Construction Impeded . | . . . Haulers Reinforced . | . . . Active Scanning Responses . | . . . Cargo Convoy Interrupts . | . . . Stealth | -11 -10 -10 --------- Run | Yrd Mat Min Distress Signals 1 | . 1 . Communications Jammed . | . . . Distress Signals . | . . . Times Spotted 25 | . 23 2 Peak Tracking Total 5 | . 5 2 Tactical Retreats . | . . . Traps | -11 -10 -10 ------- Run | Yrd Mat Min Traps Triggered 1 | . 1 . Indirectly . | . . . Trap Hack Attempts . | . . . Triggered . | . . . Disarmed . | . . . Reprogrammed . | . . . Reused . | . . . Traps Extracted . | . . . Installed . | . . . Triggered . | . . . Machines | -11 -10 -10 ---------- Run | Yrd Mat Min Machines Disabled 1 | . 1 . Max in Single Turn 1 | . 1 . Machines Repaired . | . . . Machines Dismantled . | . . . Machines Sabotaged . | . . . Overloaded Fab Kills . | . . . Hacking | -11 -10 -10 --------- Run | Yrd Mat Min Machines Accessed 4 | . 4 . Terminals 2 | . 2 . Fabricators . | . . . Repair Stations 1 | . 1 . Recycling Units 1 | . 1 . Scanalyzers . | . . . Garrison Access . | . . . Total Hacks 11 | . 11 . Successful 7 | . 7 . Failed 4 | . 4 . Catastrophic 1 | . 1 . Database Lockouts . | . . . Manual . | . . . Terminals 6 | . 6 . Fabricators . | . . . Repair Stations 3 | . 3 . Recycling Units 2 | . 2 . Scanalyzers . | . . . Garrison Access . | . . . Terminal Hacks 4 | . 4 . Alert Level 2 | . 2 . Unreport Threat 1 | . 1 . Recall Investigation 1 | . 1 . Fabricator Hacks . | . . . Repair Station Hacks 2 | . 2 . Scan Component 1 | . 1 . Repair 1 | . 1 . Recycling Unit Hacks 1 | . 1 . Report Inventory 1 | . 1 . Scanalyzer . | . . . Garrison Access Hacks . | . . . Unauthorized Hacks . | . . . Terminals . | . . . Fabricators . | . . . Repair Stations . | . . . Recycling Units . | . . . Scanalyzers . | . . . Garrison Access . | . . . Data Cores Recovered . | . . . Used . | . . . Hacking Detections 3 | . 3 . Full Trace Events 3 | . 3 . Feedback Events . | . . . Feedback Blocked . | . . . Robot Schematics Acquired . | . . . Robots Built . | . . . Authchips . | . . . Time . | . . . Total Robot Build Rating . | . . . Part Schematics Acquired . | . . . Parts Built . | . . . Authchips . | . . . Time . | . . . Total Part Build Rating . | . . . Part Studies Acquired . | . . . Parts Repaired 1 | . 1 . Time 26 | . 26 . Parts Recycled . | . . . Recycled Matter . | . . . Retrieved Matter . | . . . Retrieved Components . | . . . Parts Scanalyzed . | . . . Part Schematics Acquired . | . . . Parts Damaged . | . . . Bothacking | -11 -10 -10 ------------ Run | Yrd Mat Min Used RIF Installer . | . . . Robots Hacked . | . . . Non-combat . | . . . Combat . | . . . Robot Hacks Applied . | . . . Relay Couplers Released . | . . . Fabnet Peak Effective % . | . . . Robots Rewired . | . . . Allies Hacked . | . . . Hacks Repelled . | . . . Allies | -11 -10 -10 -------- Run | Yrd Mat Min Total Allies . | . . . Largest Group . | . . . Highest-Rated Group . | . . . Highest-Rated Ally . | . . . Total Orders . | . . . Ally Attacks . | . . . Total Damage . | . . . Kills . | . . . Allies Corrupted . | . . . Allies Melted . | . . . Intel | -11 -10 -10 ------- Run | Yrd Mat Min Active Infowar (turns) . | . . . Robot Analysis Total . | . . . Derelict Logs Recovered . | . . . Drone Launches . | . . . Drone Recoveries . | . . . Exploration | -11 -10 -10 ------------- Run | Yrd Mat Min Turns Passed 883 | 66 816 1 Spaces Moved 376 | 40 335 1 Core 9 | 9 . . Treads 367 | 31 335 1 Legs . | . . . Wheels . | . . . Hover . | . . . Flight . | . . . Fastest Speed 50 | 50 160 160 Average Speed 157 | 135 160 160 Slowest Speed 160 | 160 160 160 Overloaded Moves . | . . . Propulsion Burnouts . | . . . Robots Hopped . | . . . Potential Cave-ins . | . . . Cave-ins Triggered . | . . . Exploration Rate (%) 23 | 4 59 7 Regions Visited 2 Branch Regions 1 Pre-discovered Areas . | . . . Known Exits Taken 1 | . 1 . Unknown Exits Taken 1 | 1 . . Scrap Searched . | . . . Spaces Dug . | . . . Terrain Destroyed . | . . . Melee . | . . . Projectile . | . . . AOE . | . . . Terrain Rammed . | . . . Walls Destroyed . | . . . Machines Disabled . | . . . Actions | -11 -10 -10 --------- Run | Yrd Mat Min Total 554 | 52 501 1 Wait 74 | . 74 . Move 374 | 39 334 1 Hop . | . . . Pick Up 19 | 7 12 . Fast Attach . | . . . Attach 15 | 6 9 . Detach 1 | . 1 . Swap 3 | . 3 . Drop 5 | . 5 . Fire 49 | . 49 . Melee 14 | . 14 . Ram . | . . . Kick . | . . . Crush . | . . . Escape Stasis . | . . . Rewire . | . . . Trap . | . . . Miscellaneous . | . . . Route ------- -11/Scrapyard -10/Materials (discovered 3 exits: [*Mat] / *Min x2) -10/Mines History --------- Turn | Location | Event 5 | -11/Scrapyard | Discovered new exit (range 15) 67 | -11/Scrapyard | Entered Materials 313 | -10/Materials | Build established: Mutant 341 | -10/Materials | Discovered new exit (range 15) 372 | -10/Materials | Identified exit to Mines 557 | -10/Materials | Repaired Lgt. Treads 632 | -10/Materials | Discovered new exit (range 10) 737 | -10/Materials | Core integrity fell below 50% 761 | -10/Materials | Lost 4 parts (2n2w) 839 | -10/Materials | Discovered exit to Mines (range 6) 869 | -10/Materials | Core integrity fell below 20% 883 | -10/Materials | Entered Mines 884 | -10/Mines | Destroyed by G-34 Mercenary with Small Laser Last Messages --------------- Acquired Aluminum Leg. K-01 Serf cleans the Material Processor. K-01 Serf collects debris. K-01 Serf cleans the Material Processor. Connecting with Terminal... >>Recall(Investigation) Establishing remote squad link... No tasked investigation squads found. ALERT: Suspicious activity at Terminal M007. Dispatching Investigation squad. EXIT=FOUND: MINES Destroyed Lgt. Nuclear Core. G-47 Trooper system corrupted by crushing effect. G-47 Trooper IFF system glitched. Imp. Heat Sink fried. G-47 Trooper destroyed. LOCATION=MINES GOAL=ESCAPE Something is scanning the area. Map ----- +----------------------------------------------------+ | | | | | | | | | | | | | | | | | | | | | | | | | ????????????????????????????????????????? | | ????????????????#???????????????????????? | | ??????????????? ??????????????????????? | | ??????????????? ??????????????????????? | | ??????????????? ??????????????????????? | | ???????????????" "??????????????????????? | | ?????????"????"" ""?????????????????????? | | ?????????""" """ """ #??????????????????? | | ???????? #??????????????????? | | ???????? """ """ """ #??????????????????? | | ??????# """ """ """ #??????????????????? | | ??????# """ """ """ #??????????????????? | | ??????# #??????????????????? | | ??????? """ @ #??????????????????? | | ??????? """ #??????????????????? | | ??????? """ #??????????????????? | | ??????# #??????????????????? | | ??????# g g #??????????????????? | | ??????############## #??????????????????? | | ???????????????????? ?????????????????? | | ?????????????????????###????????????????? | | ????????????????????????????????????????? | | ????????????????????????????????????????? | | ????????????????????????????????????????? | | ????????????????????????????????????????? | | ????????????????????????????????????????? | | ????????????????????????????????????????? | | ????????????????????????????????????????? | | ????????????????????????????????????????? | | ????????????????????????????????????????? | | ????????????????????????????????????????? | | ????????????????????????????????????????? | | ????????????????????????????????????????? | | ????????????????????????????????????????? | | ????????????????????????????????????????? | | ????????????????????????????????????????? | | ????????????????????????????????????????? | | ????????????????????????????????????????? | +----------------------------------------------------+ Best States ------------- Heat Dissipation 25 Energy Generation 14 Energy Capacity 250 Matter Stores 300 Matter Capacity 300 Sight Range 16 Terrain Scan Density 10 Evasion (%) 50 Recoil Reduction 2 Item Schematics ----------------- None Robot Schematics ------------------ None Fabricated ------------ Nothing Repaired ---------- Lgt. Treads | 27% | -10/Materials Studied --------- None Alien Tech Used ----------------- None Achievements -------------- None Challenges ------------ None Game ------ Seed MultitargetingOpticalTrident Manual? 0 Play Time 00:09:55 Cumulative 6.7 hours Start 2025.12.28 @ 15:43:34 End 2025.12.28 @ 16:18:48 Sessions 1 Manual Loads 0 Difficulty Rogue Special Mode None Game No. 9 Rogue 9 Adventurer 0 Explorer 0 Win Type - Total 0 Types 0/0/0/0/0/0/0/0/0/0 Lore% 17 Gallery% 7 Achievement% 8 Wizard Run 0 Options --------- Layout 1 ASCII 0 Keyboard 0 Movement Mouse Keybinds 0 Fullscreen 1 Font 24/Smallcaps Map View 50x35 Zoom Use 0% Tactical HUD 0 Map Filters NONE Filters NONE Steam 1 RUN: 239b151d-9521-48c4-81c0-35a36671d6ac